bitfinex-derivatives/quotes_BTCF0:USTF0_20250402
["timestamp","ask_amount","ask_price","bid_price","bid_amount"]
[1743555035820,0.35305839,85087.0,85086.0,0.1181347]
[1743555036217,0.39435839,85087.0,85086.0,0.1181347]
[1743555037016,0.27681809,85087.0,85086.0,0.1181347]
[1743555038119,0.2678053,85087.0,85086.0,0.1181347]
[1743555039920,0.4630053,85087.0,85086.0,0.1181347]
[1743555040128,0.27664973,85087.0,85086.0,0.1181347]
[1743555042628,0.41683356,85087.0,85086.0,0.1181347]
[1743555043927,0.15022827,85087.0,85086.0,0.1181347]
[1743555044118,0.02904773,85087.0,85086.0,0.1596347]
[1743555044323,0.02992774,85087.0,85086.0,0.1596347]
[1743555044631,0.02904773,85087.0,85086.0,0.2030347]
[1743555045731,0.0444,85093.0,85092.0,0.1175292]
[1743555045928,0.04528001,85093.0,85092.0,0.4789292]
[1743555046333,0.04528001,85093.0,85092.0,0.5654292]
[1743555046934,0.04628001,85093.0,85092.0,0.5654292]
[1743555047338,0.04728001,85093.0,85092.0,0.5654292]
[1743555049727,0.04728001,85093.0,85092.0,0.2046292]
[1743555050832,0.04728001,85093.0,85092.0,0.1181292]
[1743555051631,0.16480781,85093.0,85092.0,0.1181292]
[1743555052541,0.28788926,85093.0,85092.0,0.0006]
[1743555052730,0.28788926,85093.0,85085.0,0.5251384]
[1743555052731,0.18145828,85093.0,85085.0,0.5251384]
[1743555053037,0.1175375,85086.0,85085.0,0.5257384]
[1743555053430,0.24479268,85086.0,85085.0,0.5257384]
[1743555053630,0.33137269,85086.0,85085.0,0.5257384]
[1743555053831,0.34308935,85086.0,85085.0,0.5257384]
[1743555054338,0.34308935,85086.0,85085.0,0.6432768]
[1743555054739,0.33137269,85086.0,85085.0,0.6432768]
[1743555055341,0.21383519,85086.0,85085.0,0.6432768]
[1743555055539,0.21295518,85086.0,85085.0,0.6847768]
[1743555055934,0.16969518,85086.0,85085.0,0.3182768]
[1743555056129,0.0416,85086.0,85085.0,0.3182768]
[1743555056430,0.1599775,85086.0,85085.0,0.3182768]
[1743555056739,0.1599775,85086.0,85085.0,0.3192768]
[1743555057038,0.16893312,85086.0,85085.0,0.3192768]
[1743555058844,0.16893312,85086.0,85085.0,0.3624768]
[1743555062644,0.16893312,85086.0,85085.0,0.2366768]
[1743555063038,0.16893312,85086.0,85085.0,0.0016]
[1743555063239,0.29630865,85086.0,85085.0,0.0016]
[1743555063536,0.29630865,85086.0,85085.0,0.1191389]
[1743555070142,0.29630865,85086.0,85085.0,0.0016]
[1743555070344,0.29630865,85086.0,85085.0,0.1191389]
[1743555072445,0.29630865,85086.0,85085.0,0.0016]
[1743555072446,0.30743608,85086.0,85085.0,0.0016]
[1743555072649,0.30743608,85086.0,85085.0,0.001]
[1743555072854,0.30743608,85086.0,85085.0,0.1185389]
[1743555073041,0.30743608,85086.0,85085.0,0.1191789]
[1743555074040,0.30743616,85086.0,85085.0,0.1191789]
[1743555074846,0.17877115,85086.0,85085.0,0.1191789]
[1743555075247,0.17877115,85086.0,85085.0,0.2049789]
[1743555075649,0.16981553,85086.0,85085.0,0.2049789]
[1743555076251,0.28735303,85086.0,85085.0,0.2049789]
[1743555076548,0.16981553,85086.0,85085.0,0.2049789]
[1743555076755,0.27491471,85086.0,85085.0,0.2049789]
[1743555077052,0.23331471,85086.0,85085.0,0.2049789]
[1743555077248,0.10593918,85086.0,85085.0,0.2049789]
[1743555077449,0.10509918,85086.0,85085.0,0.2049789]
[1743555079753,0.10509918,85086.0,85085.0,0.21652501]
[1743555080450,0.1592254,85095.0,85094.0,0.1175264]
[1743555080651,0.1600654,85095.0,85094.0,0.4792464]
[1743555081345,0.1600654,85095.0,85094.0,0.5675464]
[1743555081747,0.1630654,85095.0,85094.0,0.5675464]
[1743555083044,0.04554,85095.0,85094.0,0.5675464]
[1743555083744,0.1630651,85095.0,85094.0,0.5675464]
[1743555085852,0.04554,85095.0,85094.0,0.5675464]
[1743555086959,0.09014,85095.0,85094.0,0.5675464]
[1743555088677,0.2076651,85095.0,85094.0,0.5675464]
[1743555088873,0.2528651,85095.0,85094.0,0.5675464]
[1743555089767,0.2528651,85095.0,85094.0,0.5233464]
[1743555090079,0.2528651,85095.0,85088.0,0.21122557]
[1743555090080,0.1175334,85089.0,85088.0,0.21122557]
[1743555090284,0.1186934,85089.0,85088.0,0.21186557]
[1743555090475,0.24519055,85089.0,85088.0,0.21186557]
[1743555090987,0.24519055,85089.0,85088.0,0.32940027]
[1743555091671,0.25699141,85089.0,85088.0,0.1181747]
[1743555092185,0.25699141,85089.0,85088.0,0.00064]
[1743555094480,0.25699141,85089.0,85088.0,0.1181747]
[1743555094873,0.24519055,85089.0,85088.0,0.1181747]
[1743555095580,0.12765715,85089.0,85088.0,0.1181747]
[1743555095878,0.00116,85089.0,85088.0,0.1181747]
[1743555096085,0.04416,85089.0,85088.0,0.1181747]
[1743555096277,0.04416,85089.0,85088.0,0.2012747]
[1743555096479,0.04416,85089.0,85088.0,0.21301316]
[1743555096678,0.00116,85089.0,85088.0,0.21301316]
[1743555096886,0.00116,85089.0,85088.0,0.2012747]
[1743555097073,0.04416,85089.0,85088.0,0.2012747]
[1743555099172,0.00116,85089.0,85088.0,0.2012747]
[1743555099379,0.10509918,85090.0,85089.0,0.1175334]
[1743555099686,0.10509918,85090.0,85089.0,0.1181334]
[1743555099890,0.10621919,85090.0,85089.0,0.2453334]
[1743555100385,0.00112001,85090.0,85089.0,0.2453334]
[1743555100780,0.00112001,85090.0,85089.0,0.6061334]
[1743555100981,0.26392508,85095.0,85092.0,0.1175292]
[1743555101192,0.26508508,85095.0,85094.0,0.1175264]
[1743555101382,0.26508508,85095.0,85094.0,0.1181264]
[1743555101683,0.38812807,85095.0,85094.0,0.1181264]
[1743555102078,0.38912807,85095.0,85094.0,0.1181264]
[1743555102278,0.26608508,85095.0,85094.0,0.2050264]
[1743555102679,0.14855918,85095.0,85094.0,0.2050264]
[1743555103791,0.04546,85095.0,85094.0,0.2050264]
[1743555105389,0.1629851,85095.0,85094.0,0.1624264]
[1743555107385,0.15055918,85095.0,85094.0,0.1624264]
[1743555108785,0.26808428,85095.0,85094.0,0.1624264]
[1743555110892,0.1629851,85095.0,85094.0,0.1624264]
[1743555113300,0.04546,85095.0,85094.0,0.1624264]
[1743555113698,0.1629851,85095.0,85094.0,0.1624264]
[1743555113999,0.2068851,85095.0,85094.0,0.1624264]
[1743555118297,0.08936,85095.0,85094.0,0.1624264]
[1743555118496,0.00324,85095.0,85094.0,0.1624264]
[1743555118798,0.003,85095.0,85094.0,0.1624264]
[1743555123310,0.003,85095.0,85094.0,0.5700264]
[1743555124106,0.003,85095.0,85094.0,0.5257264]
[1743555124307,0.0884,85095.0,85094.0,0.5257264]
[1743555124695,0.0884,85095.0,85094.0,0.8865264]
[1743555128202,0.2059251,85095.0,85094.0,0.8865264]
[1743555128407,0.0884,85095.0,85094.0,0.8865264]
[1743555128709,0.2059251,85095.0,85094.0,0.8865264]
[1743555128901,0.2067651,85095.0,85094.0,0.8865264]
[1743555129308,0.2067651,85095.0,85094.0,0.4789264]
[1743555129899,0.2067651,85095.0,85094.0,0.0006]
[1743555130206,0.34354888,85095.0,85094.0,0.0006]
[1743555132105,0.34351868,85095.0,85094.0,0.0006]
[1743555132509,0.70431868,85095.0,85094.0,0.0006]
[1743555132817,0.70431868,85095.0,85094.0,0.1181264]
[1743555133208,0.70431868,85095.0,85094.0,0.0006]
[1743555133509,0.1175334,85090.0,85089.0,0.1175324]
[1743555133704,0.1183734,85090.0,85089.0,0.1181324]
[1743555133902,0.33089019,85090.0,85089.0,0.1181324]
[1743555135112,0.33189019,85090.0,85089.0,0.1181324]
[1743555136603,0.1175389,85085.0,85084.0,0.21127736]
[1743555136813,0.49005579,85085.0,85084.0,0.21187736]
[1743555137109,0.62063549,85085.0,85084.0,0.0006]
[1743555137311,0.117543,85082.0,85081.0,0.21127736]
[1743555137609,0.198983,85082.0,85081.0,0.21187736]
[1743555137810,0.32476573,85082.0,85081.0,0.21187736]
[1743555138400,0.36506573,85082.0,85081.0,0.21187736]
[1743555138816,0.36506573,85082.0,85081.0,0.21287736]
[1743555139316,0.36506573,85082.0,85081.0,0.21487736]
[1743555141613,0.36506573,85082.0,85081.0,0.0036]
[1743555141614,0.37578487,85082.0,85081.0,0.0036]
[1743555141814,0.37578487,85082.0,85081.0,0.003]
[1743555142121,0.41628487,85082.0,85081.0,0.003]
[1743555142524,0.40556573,85082.0,85081.0,0.003]
[1743555142720,0.0587743,85078.0,85074.0,0.0001763]
[1743555143018,0.1175527,85075.0,85074.0,0.0001763]
[1743555143219,0.1175527,85075.0,85067.0,0.21127736]
[1743555143220,0.1175624,85068.0,85067.0,0.21127736]
[1743555143518,0.1186424,85068.0,85067.0,0.21187736]
[1743555143823,0.25384844,85068.0,85067.0,0.21187736]
[1743555144206,0.37894844,85068.0,85067.0,0.32944116]
[1743555144410,0.37894844,85068.0,85067.0,0.21187736]
[1743555144607,0.37894844,85068.0,85061.0,0.28165873]
[1743555144608,0.1175693,85063.0,85061.0,0.28165873]
[1743555144814,0.1188493,85063.0,85062.0,0.00115024]
[1743555145013,0.24504312,85063.0,85062.0,0.00115024]
[1743555145312,0.1175845,85052.0,85051.0,0.28165873]
[1743555145522,0.1188645,85052.0,85051.0,0.39984463]
[1743555145826,0.11882451,85052.0,85051.0,0.39984463]
[1743555146009,0.11882451,85052.0,85051.0,0.28225873]
[1743555146213,0.33277901,85052.0,85051.0,0.28225873]
[1743555146414,0.1175914,85047.0,85045.0,0.35196751]
[1743555146711,0.5599514,85047.0,85046.0,0.00183033]
[1743555146912,0.6902059,85047.0,85046.0,0.00183033]
[1743555147318,0.7720059,85047.0,85046.0,0.00183033]
[1743555148118,0.7720059,85047.0,85046.0,0.01383033]
[1743555149215,0.7720059,85047.0,85046.0,0.01247033]
[1743555151134,0.7720059,85047.0,85046.0,0.00647033]
[1743555151325,0.7720059,85047.0,85046.0,0.00547033]
[1743555153632,0.7720059,85047.0,85046.0,0.00607033]
[1743555153834,0.7720059,85047.0,85046.0,0.00547033]
[1743555154221,0.7720059,85047.0,85046.0,0.00607033]
[1743555155130,0.7720059,85047.0,85046.0,0.00547033]
[1743555159332,0.7720059,85047.0,85030.0,0.00047042]
[1743555159333,0.1176135,85031.0,85030.0,0.00047042]
[1743555159528,0.1189735,85031.0,85030.0,0.00047042]
[1743555159834,0.25342184,85031.0,85030.0,0.00047042]
[1743555160132,0.25342184,85031.0,85030.0,0.11868532]
[1743555160530,0.25342184,85031.0,85030.0,0.12468532]
[1743555160734,0.29232184,85031.0,85030.0,0.12468532]
[1743555160933,0.29232184,85031.0,85030.0,0.13068532]
[1743555162635,0.29232184,85031.0,85030.0,0.17198532]
[1743555163141,0.30411893,85031.0,85030.0,0.17198532]
[1743555168542,0.30411893,85031.0,85030.0,0.05437042]
[1743555168844,0.30411893,85031.0,85030.0,0.17198532]
[1743555171035,0.29232184,85031.0,85030.0,0.17198532]
[1743555171544,0.37164184,85031.0,85030.0,0.17198532]
[1743555171744,0.37168184,85031.0,85030.0,0.17198532]
[1743555171938,0.29232184,85031.0,85030.0,0.17198532]
[1743555172447,0.37164184,85031.0,85030.0,0.17198532]
[1743555173133,0.42196493,85031.0,85030.0,0.17198532]
[1743555174848,0.41094184,85031.0,85030.0,0.17198532]
[1743555175344,0.42189231,85031.0,85030.0,0.17198532]
[1743555175537,0.25342184,85031.0,85030.0,0.17198532]
[1743555175736,0.26437251,85031.0,85030.0,0.17198532]
[1743555175941,0.25342184,85031.0,85030.0,0.17198532]
[1743555177050,0.35823503,85031.0,85030.0,0.17198532]
[1743555178847,0.10617319,85031.0,85030.0,0.17198532]
[1743555179150,0.10617319,85031.0,85030.0,0.13068532]
[1743555179151,0.30418669,85031.0,85030.0,0.13068532]
[1743555179741,0.30418669,85031.0,85030.0,0.21338532]
[1743555179954,0.43120799,85031.0,85030.0,0.21338532]
[1743555180344,0.3263948,85031.0,85030.0,0.21338532]
[1743555181548,0.3263948,85031.0,85030.0,0.09577042]
[1743555181853,0.3263948,85031.0,85030.0,0.21338532]
[1743555183455,0.2860948,85031.0,85030.0,0.21338532]
[1743555189954,0.3236948,85031.0,85030.0,0.21338532]
[1743555194556,0.29494479,85031.0,85030.0,0.21338532]
[1743555195060,0.4353437,85031.0,85030.0,0.21338532]
[1743555198960,0.29494479,85031.0,85030.0,0.21338532]
[1743555200757,0.29494479,85031.0,85030.0,0.13068532]
[1743555201362,0.30611753,85031.0,85030.0,0.13068532]
[1743555201651,0.29494479,85031.0,85030.0,0.13068532]
[1743555201854,0.30619542,85031.0,85030.0,0.13068532]
[1743555203166,0.30621301,85031.0,85030.0,0.13068532]
[1743555204361,0.30621301,85031.0,85030.0,0.01307042]
[1743555205273,0.30620588,85031.0,85030.0,0.01307042]
[1743555205461,0.32136018,85031.0,85030.0,0.01307042]
[1743555205667,0.32136019,85031.0,85030.0,0.01307042]
[1743555205868,0.32136019,85031.0,85030.0,0.01007042]
[1743555206066,0.33656786,85031.0,85030.0,0.01007042]
[1743555206263,0.33656786,85031.0,85030.0,0.00407042]
[1743555206468,0.69736786,85031.0,85030.0,0.00607042]
[1743555206663,0.69736786,85031.0,85030.0,0.00547042]
[1743555206965,0.7545571,85031.0,85030.0,0.00547042]
[1743555207163,0.75469822,85031.0,85030.0,0.00547042]
[1743555208268,0.75446837,85031.0,85030.0,0.00547042]
[1743555208970,0.73954391,85031.0,85030.0,0.00547042]
[1743555209181,0.75449803,85031.0,85030.0,0.00547042]
[1743555209570,0.75449803,85031.0,85030.0,0.00247042]
[1743555209874,0.1176315,85018.0,85017.0,0.117632]
[1743555210060,0.1176329,85017.0,85016.0,0.1593338]
[1743555210263,0.25698703,85017.0,85016.0,0.1599338]
[1743555210473,0.38057896,85017.0,85016.0,0.1599338]
[1743555211577,0.38057896,85017.0,85016.0,0.1629338]
[1743555212874,0.29947896,85017.0,85016.0,0.1629338]
[1743555213067,0.29947896,85017.0,85016.0,0.2071338]
[1743555213965,0.40484559,85017.0,85016.0,0.2071338]
[1743555217586,0.29947896,85017.0,85016.0,0.2071338]
[1743555217978,0.34017896,85017.0,85016.0,0.2071338]
[1743555218590,0.34017896,85017.0,85016.0,0.1669338]
[1743555225696,0.37043473,85017.0,85016.0,0.2046338]
[1743555227693,0.35532936,85017.0,85016.0,0.2046338]
[1743555228593,0.34017896,85017.0,85016.0,0.2046338]
[1743555229091,0.3552382,85017.0,85016.0,0.2046338]
[1743555229983,0.34017896,85017.0,85016.0,0.2046338]
[1743555230592,0.34017896,85017.0,85016.0,0.2046343]
[1743555232296,0.34017896,85017.0,85016.0,0.1669343]
[1743555232684,0.34017896,85017.0,85016.0,0.0493]
[1743555233783,0.35157237,85017.0,85016.0,0.0493]
[1743555234294,0.71237237,85017.0,85016.0,0.0493]
[1743555234594,0.71237237,85017.0,85016.0,0.0076]
[1743555234791,0.71237237,85017.0,85004.0,0.28210563]
[1743555234792,0.0588229,85008.0,85004.0,0.28210563]
[1743555234991,0.0588229,85008.0,85004.0,0.28270563]
[1743555234992,0.1176495,85005.0,85004.0,0.28270563]
[1743555235180,0.13923937,85005.0,85004.0,0.28270563]
[1743555235384,0.34703686,85005.0,85004.0,0.28270563]
[1743555236294,0.34702911,85005.0,85004.0,0.28570563]
[1743555236797,0.34702911,85005.0,85004.0,0.29070563]
[1743555237098,0.33665698,85005.0,85004.0,0.29070563]
[1743555237299,0.35697501,85005.0,85004.0,0.29070563]
[1743555237496,0.34560395,85005.0,85004.0,0.29070563]
[1743555239398,0.34560395,85005.0,84992.0,0.1587662]
[1743555239399,0.117655,85001.0,84986.0,0.28210563]
[1743555239589,0.1176744,84987.0,84986.0,0.28210563]
[1743555239988,0.11923441,84987.0,84986.0,0.28210563]
[1743555240298,0.1280844,84987.0,84986.0,0.28210563]
[1743555240792,0.01041,84987.0,84986.0,0.39978143]
[1743555240995,0.1564647,84994.0,84993.0,0.1176661]
[1743555241292,0.00116,84994.0,84993.0,0.4791461]
[1743555241494,0.35208795,85008.0,85002.0,0.1176523]
[1743555241792,0.0388,85003.0,85002.0,0.1176523]
[1743555241996,0.17311052,85003.0,85002.0,0.1183323]
[1743555242296,0.03996,85003.0,85002.0,0.1183323]
[1743555242698,0.03988001,85003.0,85002.0,0.1183323]
[1743555243399,0.15753231,85003.0,85002.0,0.1183323]
[1743555244196,0.00108001,85003.0,85002.0,0.1183323]
[1743555246592,0.00108001,85003.0,85002.0,0.4791323]
[1743555249798,0.15815,85005.0,85004.0,0.1176509]
[1743555249997,0.04166,85005.0,85004.0,0.1183309]
[1743555250305,0.1593095,85005.0,85004.0,0.1183309]
[1743555251198,0.04166,85005.0,85004.0,0.1183309]
[1743555251999,0.1593095,85005.0,85004.0,0.1183309]
[1743555253302,0.04166,85005.0,85004.0,0.1183309]
[1743555253607,0.05074296,85005.0,85004.0,0.1183309]
[1743555254703,0.01024296,85005.0,85004.0,0.1183309]
[1743555254896,0.1051139,85008.0,85007.0,0.1176467]
[1743555255102,0.1051139,85008.0,85007.0,0.1182467]
[1743555255698,0.2227592,85008.0,85007.0,0.1182467]
[1743555255897,0.1051139,85008.0,85007.0,0.1182467]
[1743555256294,0.1468139,85008.0,85007.0,0.1182467]
[1743555256718,0.04278001,85008.0,85007.0,0.1182467]
[1743555256910,0.0789,85008.0,85007.0,0.4790467]
[1743555257210,0.08002001,85008.0,85007.0,0.4790467]
[1743555257910,0.08102001,85008.0,85007.0,0.4790467]
[1743555258909,0.0799,85008.0,85007.0,0.4790467]
[1743555259105,0.08106,85008.0,85007.0,0.4790467]
[1743555259297,0.08106,85008.0,85007.0,0.5177467]
[1743555261003,0.08106,85008.0,85007.0,0.5586467]
[1743555263811,0.1987053,85008.0,85007.0,0.5586467]
[1743555264411,0.08106,85008.0,85007.0,0.5586467]
[1743555265504,0.08106,85008.0,85007.0,0.5199467]
[1743555267217,0.1861739,85008.0,85007.0,0.5199467]
[1743555267823,0.3038192,85008.0,85007.0,0.5199467]
[1743555269521,0.3038192,85008.0,85007.0,0.4790467]
[1743555271918,0.1987053,85008.0,85007.0,0.4790467]
[1743555272922,0.08106,85008.0,85007.0,0.4790467]
[1743555273122,0.0799,85008.0,85007.0,0.4790467]
[1743555273621,0.0799,85008.0,85007.0,0.5186467]
[1743555275221,0.0427,85008.0,85007.0,0.5186467]
[1743555275424,0.0427,85008.0,85007.0,0.5555467]
[1743555276014,0.00017641,85011.0,85010.0,0.1176426]
[1743555276211,0.00017641,85011.0,85010.0,0.1183226]
[1743555277023,0.00017641,85011.0,85010.0,0.1564226]
[1743555277522,0.00129642,85011.0,85010.0,0.1564226]
[1743555278326,0.00229642,85011.0,85010.0,0.1564226]
[1743555278515,0.00429642,85011.0,85010.0,0.1564226]
[1743555278917,0.12193762,85011.0,85010.0,0.1564226]
[1743555279215,0.15813762,85011.0,85010.0,0.1564226]
[1743555285332,0.19613762,85011.0,85010.0,0.1564226]
[1743555288639,0.07849642,85011.0,85010.0,0.1564226]
[1743555292053,0.19613762,85011.0,85010.0,0.1564226]
[1743555293747,0.07849642,85011.0,85010.0,0.1564226]
[1743555294350,0.19613762,85011.0,85010.0,0.1564226]
[1743555295337,0.33010994,85011.0,85010.0,0.1183226]
[1743555295941,0.3413149,85011.0,85010.0,0.1183226]
[1743555296548,0.35023085,85011.0,85010.0,0.1183226]
[1743555299751,0.35027477,85011.0,85010.0,0.1183226]
[1743555300252,0.35026385,85011.0,85010.0,0.1183226]
[1743555300951,0.35026385,85011.0,85010.0,0.00068]
[1743555301144,0.35026385,85011.0,85010.0,0.1183226]
[1743555301449,0.3413479,85011.0,85010.0,0.1183226]
[1743555304539,0.35020055,85011.0,85010.0,0.1183226]
[1743555305555,0.35022312,85011.0,85010.0,0.1183226]
[1743555307847,0.33896259,85011.0,85010.0,0.1183226]
[1743555308053,0.35026823,85011.0,85010.0,0.1183226]
[1743555310060,0.35029121,85011.0,85010.0,0.1183226]
[1743555310263,0.54559121,85011.0,85010.0,0.1183226]
[1743555310452,0.35029121,85011.0,85010.0,0.1183226]
[1743555311964,0.35029346,85011.0,85010.0,0.1183226]
[1743555312659,0.35029346,85011.0,85010.0,0.00068]
[1743555313169,0.1176592,84999.0,84998.0,0.117658]
[1743555313369,0.12759186,84999.0,84998.0,0.156718]
[1743555313558,0.23659186,84999.0,84998.0,0.156718]
[1743555314662,0.23659186,84999.0,84998.0,0.158718]
[1743555316779,0.23659186,84999.0,84998.0,0.04106]
[1743555317274,0.25151762,84999.0,84998.0,0.04106]
[1743555317573,0.26654264,84999.0,84998.0,0.04106]
[1743555317976,0.40691653,84999.0,84998.0,0.1587192]
[1743555318373,0.39199077,84999.0,84998.0,0.1587192]
[1743555318575,0.37696575,84999.0,84998.0,0.1587192]
[1743555320373,0.39190128,84999.0,84998.0,0.1587192]
[1743555321368,0.39190128,84999.0,84998.0,0.1963192]
[1743555322570,0.25152739,84999.0,84998.0,0.1587192]
[1743555323278,0.23659186,84999.0,84998.0,0.1587192]
[1743555325273,0.23659186,84999.0,84998.0,0.1938192]
[1743555326479,0.00885265,84999.0,84998.0,0.1938192]
[1743555326669,0.14037389,85001.0,85000.0,0.1176564]
[1743555326871,0.14121389,85001.0,85000.0,0.1183364]
[1743555327069,0.00084,85001.0,85000.0,0.1183364]
[1743555327279,0.17518984,85004.0,85003.0,0.1176523]
[1743555327471,0.17602984,85004.0,85003.0,0.4791323]
[1743555328179,0.17602984,85004.0,85003.0,0.5525323]
[1743555328883,0.21073326,85010.0,85009.0,0.117644]
[1743555329081,0.21133327,85010.0,85009.0,0.118284]
[1743555329269,0.1176157,85030.0,85022.0,0.117626]
[1743555329587,0.1176157,85030.0,85022.0,0.118466]
[1743555329588,0.0368,85027.0,85022.0,0.118466]
[1743555329777,0.1545172,85029.0,85022.0,0.118466]
[1743555329778,0.00124,85023.0,85022.0,0.118466]
[1743555330080,0.0004,85023.0,85022.0,0.118466]
[1743555330272,0.0004,85023.0,85022.0,0.154566]
[1743555330468,0.0004,85023.0,85022.0,0.192666]
[1743555331289,0.0054,85023.0,85022.0,0.192666]
[1743555331587,0.0104,85023.0,85022.0,0.192666]
[1743555337990,0.12890461,85023.0,85022.0,0.154566]
[1743555338380,0.20160461,85023.0,85022.0,0.154566]
[1743555338878,0.21077857,85023.0,85022.0,0.154566]
[1743555340783,0.09315397,85023.0,85022.0,0.154566]
[1743555341293,0.01957396,85023.0,85022.0,0.189066]
[1743555342793,0.02041396,85023.0,85022.0,0.189066]
[1743555343193,0.01957396,85023.0,85022.0,0.189066]
[1743555343490,0.02049396,85023.0,85022.0,0.154566]
[1743555343703,0.13719856,85023.0,85022.0,0.154566]
[1743555343887,0.13719856,85023.0,85022.0,0.118466]
[1743555343888,0.13803856,85023.0,85022.0,0.118466]
[1743555344087,0.27303815,85023.0,85022.0,0.118466]
[1743555345286,0.27303815,85023.0,85022.0,0.00084]
[1743555345593,0.28811242,85023.0,85022.0,0.00084]
[1743555345793,0.30317242,85023.0,85022.0,0.00084]
[1743555346400,0.28811242,85023.0,85022.0,0.00084]
[1743555347498,0.30367373,85023.0,85022.0,0.00084]
[1743555347797,0.1176357,85015.0,85004.0,0.1176499]
[1743555348092,0.1176357,85015.0,84992.0,0.3608]
[1743555348093,0.21330998,85015.0,85009.0,0.1176428]
[1743555348285,0.36984371,85015.0,85009.0,0.1176428]
[1743555348486,0.36984371,85015.0,85014.0,0.00077641]
[1743555348688,0.44044371,85015.0,85014.0,0.00017641]
[1743555349296,0.45147594,85015.0,85014.0,0.00017641]
[1743555349596,0.45347677,85015.0,85014.0,0.00017641]
[1743555350897,0.1176495,85006.0,85005.0,0.1176489]
[1743555351102,0.13272377,85006.0,85005.0,0.1176489]
[1743555351285,0.1176509,85004.0,85003.0,0.21163835]
[1743555351482,0.13272517,85004.0,85003.0,0.21163835]
[1743555351795,0.25876681,85004.0,85003.0,0.21163835]
[1743555352202,0.28350208,85004.0,85003.0,0.21163835]
[1743555352687,0.1176592,84998.0,84997.0,0.1176596]
[1743555352887,0.13317362,84998.0,84997.0,0.1176596]
[1743555353094,0.26324582,84998.0,84997.0,0.1176596]
[1743555353286,0.117662,84996.0,84995.0,0.00017641]
[1743555353481,0.13317642,84996.0,84995.0,0.00017641]
[1743555353680,0.27242258,84996.0,84995.0,0.00017641]
[1743555353887,0.30700258,84996.0,84995.0,0.00085641]
[1743555354195,0.34360258,84996.0,84995.0,0.00085641]
[1743555354399,0.34360258,84996.0,84995.0,0.11851971]
[1743555354590,0.34360258,84996.0,84995.0,0.00285641]
[1743555354901,0.34360258,84996.0,84995.0,0.00385641]
[1743555355601,0.3438198,84996.0,84995.0,0.00385641]
[1743555358094,0.3438198,84996.0,84995.0,0.12151971]
[1743555358404,0.3438198,84996.0,84995.0,0.00385641]
[1743555359595,0.34380028,84996.0,84995.0,0.00385641]
[1743555360697,0.34378933,84996.0,84995.0,0.00385641]
[1743555360898,0.34378933,84996.0,84995.0,0.00285641]
[1743555361210,0.34378933,84996.0,84995.0,0.00085641]
[1743555361394,0.0588371,84988.0,84982.0,0.00094138]
[1743555361600,0.1176772,84985.0,84984.0,0.3614]
[1743555361893,0.14302591,84985.0,84984.0,0.3614]
[1743555362092,0.2565632,84985.0,84984.0,0.3614]
[1743555362294,0.0588426,84980.0,84977.0,0.21163835]
[1743555362492,0.4784869,84978.0,84977.0,0.21223835]
[1743555363007,0.61127211,84978.0,84977.0,0.21223835]
[1743555363208,0.1176883,84977.0,84976.0,0.21163835]
[1743555363504,0.13411364,84977.0,84976.0,0.32992805]
[1743555363699,0.33753957,84977.0,84976.0,0.32992805]
[1743555363896,0.32473363,84977.0,84976.0,0.32992805]
[1743555364610,0.30951353,84977.0,84976.0,0.40202805]
[1743555364802,0.34591353,84977.0,84976.0,0.40202805]
[1743555367705,0.34591353,84977.0,84976.0,0.1903897]
[1743555368706,0.34591353,84977.0,84976.0,0.0379]
[1743555369107,0.34591353,84977.0,84976.0,0.0373]
[1743555369315,0.33044748,84977.0,84976.0,0.1556697]
[1743555369609,0.34584592,84977.0,84976.0,0.03798]
[1743555369811,0.34584592,84977.0,84976.0,0.0373]
[1743555370013,0.34584592,84977.0,84976.0,0.0379]
[1743555370411,0.34586315,84977.0,84976.0,0.0379]
[1743555371609,0.70666315,84977.0,84976.0,0.0379]
[1743555372109,0.70667923,84977.0,84976.0,0.0379]
[1743555373014,0.70667923,84977.0,84976.0,0.0373]
[1743555373213,0.70667923,84977.0,84976.0,0.0379]
[1743555373712,0.1765502,84970.0,84969.0,0.117698]
[1743555373903,0.19314195,84970.0,84969.0,0.118338]
[1743555374104,0.31900155,84970.0,84969.0,0.118338]
[1743555374410,0.31916743,84970.0,84969.0,0.118338]
[1743555375116,0.32888153,84970.0,84969.0,0.118338]
[1743555377207,0.32888153,84970.0,84969.0,0.152838]
[1743555377606,0.36318153,84970.0,84969.0,0.152838]
[1743555378213,0.1176993,84969.0,84968.0,0.0331]
[1743555378409,0.16981693,84969.0,84968.0,0.1508007]
[1743555378608,0.34340872,84969.0,84968.0,0.1514007]
[1743555379911,0.35883563,84969.0,84968.0,0.1514007]
[1743555381121,0.17123633,84969.0,84968.0,0.1514007]
[1743555381318,0.3608,84977.0,84976.0,0.1176897]
[1743555381513,0.3608,84977.0,84976.0,0.1183297]
[1743555381514,0.00092,84977.0,84976.0,0.1183297]
[1743555381714,0.10506614,84979.0,84978.0,0.1176869]
[1743555381913,0.10602615,84979.0,84978.0,0.1186469]
[1743555384219,0.00096001,84979.0,84978.0,0.1186469]
[1743555384413,0.1176801,84983.0,84982.0,0.1176813]
[1743555384614,0.1186001,84983.0,84982.0,0.1182813]
[1743555385921,0.00092,84983.0,84982.0,0.1182813]
[1743555386123,0.1186,84983.0,84982.0,0.1182813]
[1743555393227,0.1531,84983.0,84982.0,0.1182813]
[1743555394026,0.16223571,84983.0,84982.0,0.1182813]
[1743555395935,0.04455571,84983.0,84982.0,0.1182813]
[1743555396118,0.0337,84994.0,84989.0,0.1176716]
[1743555396316,0.10570614,84990.0,84989.0,0.1183116]
[1743555397034,0.10570614,84990.0,84989.0,0.1860116]
[1743555399231,0.14028848,84995.0,84994.0,0.1176647]
[1743555399434,0.14100848,84995.0,84994.0,0.1183847]
[1743555399829,0.00072,84995.0,84994.0,0.1183847]
[1743555400026,0.00017652,84998.0,84997.0,0.1176606]
[1743555400228,0.11855572,84998.0,84997.0,0.1183806]
[1743555401333,0.15035572,84998.0,84997.0,0.1183806]
[1743555408333,0.15920204,84998.0,84997.0,0.1183806]
[1743555411135,0.52000204,84998.0,84997.0,0.1183806]
[1743555411342,0.51115572,84998.0,84997.0,0.1183806]
[1743555412444,0.51999533,84998.0,84997.0,0.1183806]
[1743555413047,0.55329533,84998.0,84997.0,0.1183806]
[1743555414849,0.69358381,84998.0,84997.0,0.1183806]
[1743555416148,0.6847442,84998.0,84997.0,0.1183806]
[1743555417749,0.69359222,84998.0,84997.0,0.1183806]
[1743555419042,0.6847442,84998.0,84997.0,0.1183806]
[1743555420951,0.69358838,84998.0,84997.0,0.1183806]
[1743555421155,0.82536743,84998.0,84997.0,0.00072]
[1743555421344,0.1176758,84987.0,84986.0,0.1176753]
[1743555421654,0.1176772,84985.0,84984.0,0.4784781]
[1743555421860,0.1184372,84985.0,84984.0,0.4792781]
[1743555422062,0.12728138,84985.0,84984.0,0.4792781]
[1743555422262,0.19298138,84985.0,84984.0,0.4792781]
[1743555426869,0.19298138,84985.0,84984.0,0.1184781]